{"text_format":"2","workbook":"xlsx","n_sheets":3,"sheets":["tote","ID","Sheet3"],"not_rendered":{"charts":0,"images":0,"macros":1,"external_links":0,"defined_names":2,"comments":0,"pivot_tables":0},"unopened":[],"bounds":{"document_bytes":16777216,"sheet_cells":100000,"run_cost":"one","rows_first":2000,"rows_last":500,"rows_between":2000,"halvings":0,"cell_chars":16384,"cell_head_chars":4096},"cells_cut":0,"cells_raw":0,"read":"whole","date_system":"1900"}

{"sheet":"tote","index":0,"n_rows":423,"n_cols":11,"rows_kept":423,"cut":false,"hidden":false,"merged":[]}
{"$rows_empty":11}
["We have modified the BET Process!"]
[]
["We have introduced a CONFIRM BET step which will allow you to preview your bet and ensure it is the bet you want. Once you are happy with your bet click the CONFIRM BET button."]
[]
["Your bet is only placed when you click CONFIRM BET and then cannot be cancelled."]
[]
["Don't show me this message again"]
[]
[]
["Online Sports Betting, Horse Racing Betting Odds, Bet Online at TABozbet.com"]
[]
["You are not logged in   [login]"]
[null,"BETTING CLOSED AT: 14:40:41"]
[]
[null,"R1"]
[null,"R2"]
[null,"R3"]
[null,"R4"]
[null,"R5"]
[null,"R6"]
[null,"R7"]
[null,"R8"]
[]
[null,"WYONG (SR) HILLS ANTENNAS (CL1 HCP)"]
[]
[null,"Start 14:40[11/10/2012]"]
[null,"Weather OVERCAST"]
[null,"Distance 1100m"]
[null,"Track DEAD4"]
[null,"Tips 4,3,5,2"]
[null,"Paying 1,2,3"]
[]
[null,"Racing Radio"]
[null,"Listen Live"]
[null,"All bet types are now pooled with unless you see this icon ! "]
[null,"RESULTS:  3, 5, 4, 2"]
[]
[null,"loading"]
[null,"Processing"]
[null,"Please Wait"]
[null,"Win $108,570","Place $43,324",null,"Quinella $16,067",null,"Exacta $6,771",null,"Trifecta $48,034",null,"First 4 $22,369"]
[null,"No.",null,"Name","Win div","Place div","Rider","Bar","Hcp"]
[null,1,null,"REBEL DANE","SCRATCHED",null,"N.R",5,59,"Expand"]
[null,"Career"]
[null,"1:1,0,0"]
[null,"Last 10 starts"]
[null,1]
[null,"Prizemoney"]
[null,29880]
[null,"Distance"]
[null,"-"]
[null,"Track"]
[null,"-"]
[]
[null,"Track/Distance"]
[null,"-"]
[null,"1st Up"]
[null,"1:1,0,0"]
[null,"2nd Up"]
[null,"-"]
[]
[null,"Good"]
[null,"1:1,0,0"]
[null,"Dead"]
[null,"-"]
[null,"Slow"]
[null,"-"]
[null,"Heavy"]
[null,"-"]
[null,"Fast"]
[null,"-"]
[]
[null,2,null,"COLUMBIAD",12.3,3.2,"PETER ROBL",4,58.5,"Expand"]
[null,"Career"]
[null,"4:1,0,0"]
[null,"Last 10 starts"]
[null,"50x10x"]
[null,"Prizemoney"]
[null,9640]
[null,"Distance"]
[null,"-"]
[null,"Track"]
[null,"-"]
[]
[null,"Track/Distance"]
[null,"-"]
[null,"1st Up"]
[null,"2:1,0,0"]
[null,"2nd Up"]
[null,"2:0,0,0"]
[]
[null,"Good"]
[null,"2:0,0,0"]
[null,"Dead"]
[null,"2:1,0,0"]
[null,"Slow"]
[null,"-"]
[null,"Heavy"]
[null,"-"]
[null,"Fast"]
[null,"-"]
[]
[null,3,null,"INVENTIVE",5.3,1.9,"JAMES MCDONALD",11,58.5,"Expand"]
[null,"Career"]
[null,"3:1,0,0"]
[null,"Last 10 starts"]
[null,"9x14x"]
[null,"Prizemoney"]
[null,7825]
[null,"Distance"]
[null,"-"]
[null,"Track"]
[null,"-"]
[]
[null,"Track/Distance"]
[null,"-"]
[null,"1st Up"]
[null,"2:1,0,0"]
[null,"2nd Up"]
[null,"1:0,0,0"]
[]
[null,"Good"]
[null,"1:1,0,0"]
[null,"Dead"]
[null,"-"]
[null,"Slow"]
[null,"2:0,0,0"]
[null,"Heavy"]
[null,"-"]
[null,"Fast"]
[null,"-"]
[]
[null,4,null,"GOLD BENDER",5.3,1.8,"JIM CASSIDY",7,57,"Expand"]
[null,"Career"]
[null,"8:1,2,0"]
[null,"Last 10 starts"]
[null,"5252157x5"]
[null,"Prizemoney"]
[null,67840]
[null,"Distance"]
[null,"5:1,1,0"]
[null,"Track"]
[null,"-"]
[]
[null,"Track/Distance"]
[null,"-"]
[null,"1st Up"]
[null,"2:0,0,0"]
[null,"2nd Up"]
[null,"1:0,1,0"]
[]
[null,"Good"]
[null,"5:1,1,0"]
[null,"Dead"]
[null,"1:0,0,0"]
[null,"Slow"]
[null,"2:0,1,0"]
[null,"Heavy"]
[null,"-"]
[null,"Fast"]
[null,"-"]
[]
[null,5,null,"STRATURBO",2.2000000000000002,1.1000000000000001,"JASON COLLETT",12,56.5,"Expand"]
[null,"Career"]
[null,"1:1,0,0"]
[null,"Last 10 starts"]
[null,1]
[null,"Prizemoney"]
[null,17250]
[null,"Distance"]
[null,"-"]
[null,"Track"]
[null,"1:1,0,0"]
[]
[null,"Track/Distance"]
[null,"-"]
[null,"1st Up"]
[null,"1:1,0,0"]
[null,"2nd Up"]
[null,"-"]
[]
[null,"Good"]
[null,"1:1,0,0"]
[null,"Dead"]
[null,"-"]
[null,"Slow"]
[null,"-"]
[null,"Heavy"]
[null,"-"]
[null,"Fast"]
[null,"-"]
[]
[null,6,null,"FUPEG'S FURY",17.3,4.2,"BRENTON AVDULLA",8,56,"Expand"]
[null,"Career"]
[null,"10:1,1,0"]
[null,"Last 10 starts"]
[null,"746x21467x"]
[null,"Prizemoney"]
[null,12950]
[null,"Distance"]
[null,"-"]
[null,"Track"]
[null,"1:0,0,0"]
[]
[null,"Track/Distance"]
[null,"-"]
[null,"1st Up"]
[null,"3:0,1,0"]
[null,"2nd Up"]
[null,"3:1,0,0"]
[]
[null,"Good"]
[null,"2:1,0,0"]
[null,"Dead"]
[null,"5:0,1,0"]
[null,"Slow"]
[null,"2:0,0,0"]
[null,"Heavy"]
[null,"1:0,0,0"]
[null,"Fast"]
[null,"-"]
[]
[null,7,null,"JUST ANOTHER",41.3,5.8,"ADRIAN LAYT",10,54.5,"Expand"]
[null,"Career"]
[null,"10:1,0,1"]
[null,"Last 10 starts"]
[null,"4106x05965"]
[null,"Prizemoney"]
[null,13900]
[null,"Distance"]
[null,"4:0,0,0"]
[null,"Track"]
[null,"3:1,0,0"]
[]
[null,"Track/Distance"]
[null,"2:0,0,0"]
[null,"1st Up"]
[null,"3:0,0,1"]
[null,"2nd Up"]
[null,"2:1,0,0"]
[]
[null,"Good"]
[null,"5:1,0,0"]
[null,"Dead"]
[null,"4:0,0,1"]
[null,"Slow"]
[null,"1:0,0,0"]
[null,"Heavy"]
[null,"-"]
[null,"Fast"]
[null,"-"]
[]
[null,8,null,"NOTHIN LEICA STORM",13.4,3.1,"CHRISTIAN REITH",9,54,"Expand"]
[null,"Career"]
[null,"9:1,2,0"]
[null,"Last 10 starts"]
[null,"89x1777225"]
[null,"Prizemoney"]
[null,15700]
[null,"Distance"]
[null,"2:0,0,0"]
[null,"Track"]
[null,"1:0,0,0"]
[]
[null,"Track/Distance"]
[null,"1:0,0,0"]
[null,"1st Up"]
[null,"2:1,0,0"]
[null,"2nd Up"]
[null,"2:0,0,0"]
[]
[null,"Good"]
[null,"6:1,2,0"]
[null,"Dead"]
[null,"1:0,0,0"]
[null,"Slow"]
[null,"1:0,0,0"]
[null,"Heavy"]
[null,"1:0,0,0"]
[null,"Fast"]
[null,"-"]
[]
[null,9,null,"YOUNG MONEY",54.1,10.7,"JAY FORD",6,54,"Expand"]
[null,"Career"]
[null,"10:1,1,0"]
[null,"Last 10 starts"]
[null,"15x426606x"]
[null,"Prizemoney"]
[null,14200]
[null,"Distance"]
[null,"1:0,0,0"]
[null,"Track"]
[null,"6:1,1,0"]
[]
[null,"Track/Distance"]
[null,"-"]
[null,"1st Up"]
[null,"2:0,0,0"]
[null,"2nd Up"]
[null,"2:0,1,0"]
[]
[null,"Good"]
[null,"5:0,0,0"]
[null,"Dead"]
[null,"1:0,0,0"]
[null,"Slow"]
[null,"2:0,0,0"]
[null,"Heavy"]
[null,"2:1,1,0"]
[null,"Fast"]
[null,"-"]
[]
[null,10,null,"HOT SNAP",55.6,10.1,"MS CLARE PETTIGREW (A3.0)",2,54,"Expand"]
[null,"Career"]
[null,"26:1,1,6"]
[null,"Last 10 starts"]
[null,"3547349x30"]
[null,"Prizemoney"]
[null,34855]
[null,"Distance"]
[null,"4:0,0,0"]
[null,"Track"]
[null,"1:0,0,0"]
[]
[null,"Track/Distance"]
[null,"-"]
[null,"1st Up"]
[null,"6:0,0,2"]
[null,"2nd Up"]
[null,"5:0,0,0"]
[]
[null,"Good"]
[null,"13:1,0,4"]
[null,"Dead"]
[null,"10:0,0,2"]
[null,"Slow"]
[null,"3:0,1,0"]
[null,"Heavy"]
[null,"-"]
[null,"Fast"]
[null,"-"]
[]
[null,11,null,"SPURLICIOUS",23.5,5.8,"JEFF PENZA",1,54,"Expand"]
[null,"Career"]
[null,"11:1,1,0"]
[null,"Last 10 starts"]
[null,"x5427180x6"]
[null,"Prizemoney"]
[null,9275]
[null,"Distance"]
[null,"3:1,1,0"]
[null,"Track"]
[null,"-"]
[]
[null,"Track/Distance"]
[null,"-"]
[null,"1st Up"]
[null,"4:0,0,0"]
[null,"2nd Up"]
[null,"2:0,0,0"]
[]
[null,"Good"]
[null,"6:1,0,0"]
[null,"Dead"]
[null,"4:0,1,0"]
[null,"Slow"]
[null,"1:0,0,0"]
[null,"Heavy"]
[null,"-"]
[null,"Fast"]
[null,"-"]
[]
[null,12,null,"SILVERZAR",33.200000000000003,6.6,"MS ROBYN FREEMAN-KEY",3,54,"Expand"]
[null,"Career"]
[null,"28:0,3,3"]
[null,"Last 10 starts"]
[null,"x54987x832"]
[null,"Prizemoney"]
[null,14450]
[null,"Distance"]
[null,"2:0,0,0"]
[null,"Track"]
[null,"-"]
[]
[null,"Track/Distance"]
[null,"-"]
[null,"1st Up"]
[null,"6:0,2,0"]
[null,"2nd Up"]
[null,"6:0,0,1"]
[]
[null,"Good"]
[null,"16:0,2,2"]
[null,"Dead"]
[null,"7:0,1,1"]
[null,"Slow"]
[null,"4:0,0,0"]
[null,"Heavy"]
[null,"1:0,0,0"]
[null,"Fast"]
[null,"-"]
[]
[null,"Download   "]
[null,"!Error: Service Communication Error."]
[]
[null,"If the problem continues, please contact Customer Support on: 1300 36 36 88. Please check your account transaction details if you were in the process of making a bet."]
[]
["dummy link button"]
[]
["Provisional Dividends"]
[]
["Result Combinations"]

{"sheet":"ID","index":1,"n_rows":3,"n_cols":1,"rows_kept":3,"cut":false,"hidden":false,"merged":[]}
["SR"]
["11102012"]
[8]

{"sheet":"Sheet3","index":2,"n_rows":21,"n_cols":2,"rows_kept":21,"cut":false,"hidden":false,"merged":[]}
["CANIWIN",{"$f":"IFERROR(VLOOKUP(A1,totes,2,FALSE),9999)","v":9999}]
["COOL DUDE HARRY",9999]
["EIGHTY ACES",9999]
["FIREFRONT",9999]
["LAST GO",9999]
["LIGHTNING LEGS",9999]
["LISSOM",9999]
["LIVE TO WIN",9999]
["MAGNUS BELLE",9999]
["MARSA",9999]
["MYSTIC OBSESSION",9999]
["Name",9999]
["PERFECT ERA",9999]
["PHEMIE",9999]
["PINK ZINK",9999]
["ROSE OF CENTAINE",9999]
["SEA 'N' BELIEVE",9999]
["TESTAMAN",9999]
["VALID CONTRACT",9999]
["WOZNIACKI",9999]
["YOULGETEM",9999]